bitfinex/quotes_BTCUSD_20241102
["timestamp","ask_amount","ask_price","bid_price","bid_amount"]
[1730573215107,0.59570192,69420.0,69419.0,0.077742]
[1730573216240,0.59569141,69420.0,69419.0,0.077742]
[1730573216475,0.45723616,69420.0,69419.0,0.077742]
[1730573216671,0.45723616,69420.0,69419.0,0.079742]
[1730573216910,0.45723616,69420.0,69419.0,0.077742]
[1730573219713,0.42218688,69420.0,69419.0,0.077742]
[1730573220074,0.45719612,69420.0,69419.0,0.077742]
[1730573221828,0.45719612,69420.0,69419.0,0.001642]
[1730573222050,0.42218688,69420.0,69419.0,0.001642]
[1730573222305,0.45718863,69420.0,69419.0,0.001642]
[1730573222692,0.42218688,69420.0,69419.0,0.001642]
[1730573222701,0.45718738,69420.0,69419.0,0.001642]
[1730573223830,0.59564263,69420.0,69419.0,0.001642]
[1730573224028,0.68874263,69420.0,69419.0,0.001642]
[1730573225563,0.68956363,69420.0,69419.0,0.001642]
[1730573229627,0.68954758,69420.0,69419.0,0.001642]
[1730573231890,0.65456313,69420.0,69419.0,0.001642]
[1730573232477,0.59645174,69420.0,69419.0,0.001642]
[1730573232881,0.56146313,69420.0,69419.0,0.001642]
[1730573233147,0.59645385,69420.0,69419.0,0.001642]
[1730573233509,0.59645648,69420.0,69419.0,0.001642]
[1730573234235,0.56146313,69420.0,69419.0,0.001642]
[1730573234240,0.59645775,69420.0,69419.0,0.001642]
[1730573237685,0.5964817,69420.0,69419.0,0.001642]
[1730573238322,0.6868817,69420.0,69419.0,0.001642]
[1730573240256,0.70932951,69420.0,69419.0,0.001642]
[1730573240513,0.6868817,69420.0,69419.0,0.001642]
[1730573241577,0.67344437,69420.0,69419.0,0.001642]
[1730573241590,0.68693264,69420.0,69419.0,0.001642]
[1730573242306,0.7094131,69420.0,69419.0,0.001642]
[1730573242921,0.68693264,69420.0,69419.0,0.001642]
[1730573243348,0.7094131,69420.0,69419.0,0.001642]
[1730573243970,0.7903131,69420.0,69419.0,0.001642]
[1730573244927,0.97846102,69420.0,69419.0,0.001642]
[1730573245413,0.9784734,69420.0,69419.0,0.001642]
[1730573245422,0.94339151,69420.0,69419.0,0.001642]
[1730573245869,0.97847444,69420.0,69419.0,0.001642]
[1730573248258,0.97846271,69420.0,69419.0,0.001642]
[1730573248806,0.9784588,69420.0,69419.0,0.001642]
[1730573249129,0.96497138,69420.0,69419.0,0.001642]
[1730573249134,0.9784588,69420.0,69419.0,0.001642]
[1730573252215,0.94339151,69420.0,69419.0,0.001642]
[1730573252615,0.97845119,69420.0,69419.0,0.001642]
[1730573260710,0.59652281,69420.0,69419.0,0.001642]
[1730573260861,0.45806756,69420.0,69419.0,0.001642]
[1730573262914,0.42300788,69420.0,69419.0,0.001642]
[1730573263127,0.45805338,69420.0,69419.0,0.001642]
[1730573268936,0.45805338,69420.0,69419.0,0.003642]
[1730573269360,0.45805338,69420.0,69419.0,0.001642]
[1730573270339,0.45803064,69420.0,69419.0,0.003642]
[1730573270856,0.45803064,69420.0,69419.0,0.001642]
[1730573272809,0.45802627,69420.0,69419.0,0.001642]
[1730573274129,0.43647817,69420.0,69419.0,0.001642]
[1730573276708,0.43647817,69420.0,69419.0,0.003642]
[1730573277483,0.43647327,69420.0,69419.0,0.003642]
[1730573280279,0.43647327,69420.0,69419.0,0.008642]
[1730573280770,0.4364734,69420.0,69419.0,0.008642]
[1730573283370,0.43647392,69420.0,69419.0,0.008642]
[1730573285679,0.42300788,69420.0,69419.0,0.092442]
[1730573286087,0.42300788,69420.0,69419.0,0.45600986]
[1730573286285,0.42300788,69420.0,69419.0,0.34839925]
[1730573286532,0.42300788,69420.0,69419.0,0.43442902]
[1730573287229,0.42300788,69420.0,69419.0,0.34839925]
[1730573287246,0.42300788,69420.0,69419.0,0.43440801]
[1730573287674,0.42300788,69420.0,69419.0,0.43440495]
[1730573288434,0.42300788,69420.0,69419.0,0.43869917]
[1730573289086,0.42300788,69420.0,69419.0,0.35269347]
[1730573289248,0.42300788,69420.0,69419.0,0.4386626]
[1730573290166,0.42300788,69420.0,69419.0,0.35269347]
[1730573290536,0.42300788,69420.0,69419.0,0.4386626]
[1730573290742,0.42300788,69420.0,69419.0,0.43864688]
[1730573290881,0.42300788,69420.0,69419.0,0.35269347]
[1730573292257,0.42300788,69420.0,69419.0,0.41714018]
[1730573294309,0.42300788,69420.0,69419.0,0.25828293]
[1730573294532,0.42300788,69420.0,69419.0,0.41686135]
[1730573295500,0.42300788,69420.0,69419.0,0.25828293]
[1730573295862,0.42300788,69420.0,69419.0,0.16118293]
[1730573296063,0.42300788,69420.0,69419.0,0.08238293]
[1730573298057,0.42300788,69420.0,69419.0,0.01793622]
[1730573298217,0.42300788,69420.0,69419.0,0.06089459]
[1730573298713,0.42300788,69420.0,69419.0,0.01793622]
[1730573301804,0.42300788,69420.0,69419.0,0.08238537]
[1730573302037,0.42300788,69420.0,69419.0,0.08208691]
[1730573303041,0.42300788,69420.0,69419.0,0.24073144]
[1730573303430,0.42300788,69420.0,69419.0,0.17628229]
[1730573304510,0.42300788,69420.0,69419.0,0.26221449]
[1730573305558,0.42300788,69420.0,69419.0,0.17628229]
[1730573306591,0.42300788,69420.0,69419.0,0.28369754]
[1730573310534,0.42300788,69420.0,69419.0,0.17628229]
[1730573310732,0.42300788,69420.0,69419.0,0.12519926]
[1730573310888,0.42300788,69420.0,69419.0,0.28384379]
[1730573311656,0.42300788,69420.0,69419.0,0.17628229]
[1730573314722,0.42300788,69420.0,69419.0,0.17650082]
[1730573317525,0.51540788,69420.0,69419.0,0.1702066]
[1730573317738,0.60870694,69420.0,69419.0,0.07594245]
[1730573317968,0.60870694,69420.0,69419.0,0.01134354]
[1730573318189,0.60870694,69420.0,69419.0,0.05441283]
[1730573319023,0.60870694,69420.0,69419.0,0.04441283]
[1730573319221,0.60870694,69420.0,69419.0,0.00134354]
[1730573319578,0.6302901,69420.0,69419.0,0.00134354]
[1730573320395,0.60869737,69420.0,69419.0,0.00134354]
[1730573320752,0.59520788,69420.0,69419.0,0.00134354]
[1730573320758,0.60869418,69420.0,69419.0,0.00134354]
[1730573323751,0.59520788,69420.0,69419.0,0.00134354]
[1730573324144,0.60868839,69420.0,69419.0,0.00134354]
[1730573327577,0.60868506,69420.0,69419.0,0.00134354]
[1730573330113,0.608684,69420.0,69419.0,0.00134354]
[1730573330463,0.608684,69420.0,69419.0,0.04442342]
[1730573330888,0.608684,69420.0,69419.0,0.00134354]
[1730573331207,0.60868365,69420.0,69419.0,0.00134354]
[1730573331536,0.59520788,69420.0,69419.0,0.00134354]
[1730573331842,0.60868355,69420.0,69419.0,0.00134354]
[1730573338414,0.59520788,69420.0,69419.0,0.00134354]
[1730573338512,0.52888554,69420.0,69419.0,0.04941581]
[1730573338677,0.42300788,69420.0,69419.0,0.00634354]
[1730573338879,0.42300788,69420.0,69419.0,0.0729558]
[1730573339261,0.42300788,69420.0,69419.0,0.23194086]
[1730573339461,0.42300788,69420.0,69419.0,0.1673286]
[1730573339673,0.42300788,69420.0,69419.0,0.2750157]
[1730573339893,0.42300788,69420.0,69419.0,0.1673286]
[1730573340531,0.42300788,69420.0,69419.0,0.1723286]
[1730573341291,0.42300788,69420.0,69419.0,0.1722939]
[1730573341613,0.42300788,69420.0,69419.0,0.17664]
[1730573343402,0.51660788,69420.0,69419.0,0.17164]
[1730573343557,0.51660788,69420.0,69419.0,0.17664]
[1730573344998,0.42300788,69420.0,69419.0,0.17664]
[1730573345424,0.42300788,69420.0,69419.0,0.17664216]
[1730573345644,0.42300788,69420.0,69419.0,0.25864216]
[1730573347643,0.42300788,69420.0,69419.0,0.17664216]
[1730573349568,0.52260788,69420.0,69419.0,0.17464216]
[1730573350001,0.52260788,69420.0,69419.0,0.17029101]
[1730573350303,0.52260788,69420.0,69419.0,0.16529101]
[1730573350508,0.52260788,69420.0,69419.0,0.092481]
[1730573350721,0.52260788,69420.0,69419.0,0.00634354]
[1730573350940,0.52260788,69420.0,69419.0,0.16529101]
[1730573351695,0.52260788,69420.0,69419.0,0.22490112]
[1730573351914,0.53608582,69420.0,69419.0,0.06595365]
[1730573352100,0.53608582,69420.0,69419.0,0.00134354]
[1730573352704,0.53608582,69420.0,69419.0,0.00634354]
[1730573352912,0.53608582,69420.0,69419.0,0.00134354]
[1730573354965,0.53608657,69420.0,69419.0,0.04442318]
[1730573357353,0.53608657,69420.0,69419.0,0.00134354]
[1730573358435,0.53608669,69420.0,69419.0,0.00134354]
[1730573361903,0.52260788,69420.0,69419.0,0.00134354]
[1730573362419,0.53608715,69420.0,69419.0,0.00134354]
[1730573363096,0.53608715,69420.0,69419.0,0.06595932]
[1730573363507,0.53608715,69420.0,69419.0,0.06598663]
[1730573364203,0.53608715,69420.0,69419.0,0.00134354]
[1730573364398,0.53608715,69420.0,69419.0,0.06598663]
[1730573365708,0.52260788,69420.0,69419.0,0.06598663]
[1730573365712,0.53608749,69420.0,69419.0,0.06598663]
[1730573369216,0.53608749,69420.0,69419.0,0.06598681]
[1730573372948,0.52260788,69420.0,69419.0,0.06598681]
[1730573373387,0.61338944,69420.0,69419.0,0.06600153]
[1730573373394,0.61338932,69420.0,69419.0,0.00134354]
[1730573373617,0.61338932,69420.0,69419.0,0.06600153]
[1730573373755,0.61338932,69420.0,69419.0,0.00134354]
[1730573375738,0.63496558,69420.0,69419.0,0.00134354]
[1730573375941,0.63496558,69420.0,69419.0,0.04445733]
[1730573376564,0.63497328,69420.0,69419.0,0.04445733]
[1730573377383,0.63497328,69420.0,69419.0,0.04445691]
[1730573380084,0.59990788,69420.0,69419.0,0.04445691]
[1730573380089,0.6215015,69420.0,69419.0,0.04445691]
[1730573380311,0.63499751,69420.0,69419.0,0.04445691]
[1730573381849,0.63499751,69420.0,69419.0,0.00134354]
[1730573383932,0.63499436,69420.0,69419.0,0.00134354]
[1730573388497,0.55769436,69420.0,69419.0,0.00134354]
[1730573390802,0.55768264,69420.0,69419.0,0.00134354]
[1730573394299,0.55768347,69420.0,69419.0,0.00134354]
[1730573394528,0.55768347,69420.0,69419.0,0.04446629]
[1730573395603,0.55768347,69420.0,69419.0,0.00134354]
[1730573395804,0.55768347,69420.0,69419.0,0.04448898]
[1730573396419,0.55768347,69420.0,69419.0,0.00134354]
[1730573397783,0.55768347,69420.0,69419.0,0.06606176]
[1730573398233,0.55768509,69420.0,69419.0,0.06606176]
[1730573402113,0.55768509,69420.0,69419.0,0.08763451]
[1730573402114,0.43649911,69420.0,69419.0,0.08763451]
[1730573402316,0.43649911,69420.0,69419.0,0.01134354]
[1730573402516,0.43649911,69420.0,69419.0,0.17063109]
[1730573402765,0.43649911,69420.0,69419.0,0.17263109]
[1730573403214,0.43649882,69420.0,69419.0,0.17259312]
[1730573403600,0.43649882,69420.0,69419.0,0.17685607]
[1730573403991,0.43649882,69420.0,69419.0,0.17059312]
[1730573404523,0.4364974,69420.0,69419.0,0.17059312]
[1730573404525,0.4364974,69420.0,69419.0,0.01134354]
[1730573404788,0.4364974,69420.0,69419.0,0.17059312]
[1730573405558,0.4364974,69420.0,69419.0,0.11915766]
[1730573405917,0.5342974,69420.0,69419.0,0.27840724]
[1730573405991,0.5342974,69420.0,69419.0,0.27340724]
[1730573407092,0.5342974,69420.0,69419.0,0.27840724]
[1730573410829,0.53429114,69420.0,69419.0,0.2783674]
[1730573411036,0.52080788,69420.0,69419.0,0.2733674]
[1730573411299,0.53429114,69420.0,69419.0,0.2733674]
[1730573411484,0.52080788,69420.0,69419.0,0.2733674]
[1730573412129,0.52080788,69420.0,69419.0,0.2783674]
[1730573412365,0.53429079,69420.0,69419.0,0.2783674]
[1730573412596,0.52080788,69420.0,69419.0,0.2783674]
[1730573413140,0.52080788,69420.0,69419.0,0.2733674]
[1730573413344,0.52080788,69420.0,69419.0,0.16059312]
[1730573413345,0.61309061,69420.0,69419.0,0.16059312]
[1730573413567,0.72288399,69420.0,69419.0,0.04445976]
[1730573413789,0.61309061,69420.0,69419.0,0.00134354]
[1730573414276,0.63466546,69420.0,69419.0,0.00134354]
[1730573414941,0.59960788,69420.0,69419.0,0.00134354]
[1730573414950,0.63466854,69420.0,69419.0,0.00134354]
[1730573415388,0.63466855,69420.0,69419.0,0.00134354]
[1730573415475,0.61309275,69420.0,69419.0,0.00134354]
[1730573415874,0.73806313,69420.0,69419.0,0.00134354]
[1730573416094,0.84785651,69420.0,69419.0,0.00134354]
[1730573417410,0.86943641,69420.0,69419.0,0.00134354]
[1730573418107,0.88292384,69420.0,69419.0,0.00134354]
[1730573418770,0.84785651,69420.0,69419.0,0.00134354]
[1730573419612,0.94869151,69420.0,69419.0,0.00134354]
[1730573421227,0.98373389,69420.0,69419.0,0.00134354]
[1730573421478,1.00673389,69420.0,69419.0,0.00134354]
[1730573430223,0.9940961,69420.0,69419.0,0.00134354]
[1730573430227,1.02904726,69420.0,69419.0,0.00134354]
[1730573430272,1.05145185,69420.0,69419.0,0.00134354]
[1730573436408,1.02904726,69420.0,69419.0,0.00134354]
[1730573437106,1.02905358,69420.0,69419.0,0.00134354]
[1730573439721,1.00664899,69420.0,69419.0,0.00134354]
[1730573441340,0.97169151,69420.0,69419.0,0.00134354]
[1730573441349,1.11647905,69420.0,69419.0,0.00134354]
[1730573441901,1.00668567,69420.0,69419.0,0.00134354]
[1730573442317,1.20049947,69420.0,69419.0,0.00134354]
[1730573443492,0.32042776,69416.0,69415.0,0.00164]
[1730573443712,0.69067717,69416.0,69415.0,0.00164]
[1730573443947,1.11286405,69416.0,69415.0,0.00164]
[1730573444401,1.07786989,69416.0,69415.0,0.00164]
[1730573444623,1.11292162,69416.0,69415.0,0.00164]
[1730573446669,1.00312824,69416.0,69415.0,0.00164]
[1730573447063,1.11292162,69416.0,69415.0,0.00164]
[1730573448069,1.11293155,69416.0,69415.0,0.00164]
[1730573448964,1.25140885,69416.0,69415.0,0.00164]
[1730573449183,1.35140885,69416.0,69415.0,0.00164]
[1730573450921,1.21293155,69416.0,69415.0,0.00164]
[1730573451904,1.21293027,69416.0,69415.0,0.00164]
[1730573453439,1.2129278,69416.0,69415.0,0.00164]
[1730573455277,1.21292409,69416.0,69415.0,0.00164]
[1730573458598,1.2209229,69416.0,69415.0,0.00164]
[1730573458965,1.25597353,69416.0,69415.0,0.00164]
[1730573459531,1.21292052,69416.0,69415.0,0.00164]
[1730573459969,1.27750003,69416.0,69415.0,0.00164]
[1730573461384,1.2424494,69416.0,69415.0,0.00164]
[1730573461604,1.35857583,69416.0,69415.0,0.00164]
[1730573462634,1.44468185,69416.0,69415.0,0.00164]
[1730573464225,1.44471407,69416.0,69415.0,0.00164]
[1730573464450,1.35848295,69416.0,69415.0,0.00164]
[1730573465519,1.46627185,69416.0,69415.0,0.00164]
[1730573466388,1.36543085,69416.0,69398.0,0.21654552]
[1730573466605,0.23364838,69406.0,69398.0,0.21654552]
[1730573466834,0.82934174,69406.0,69398.0,0.21654552]
[1730573467034,0.100861,69402.0,69398.0,0.21654552]
[1730573467263,0.59569336,69401.0,69398.0,0.21654552]
[1730573467474,0.03505123,69400.0,69398.0,0.21654552]
[1730573467686,0.12333879,69402.0,69397.0,0.0794]
[1730573467687,0.59569336,69399.0,69397.0,0.0794]
[1730573467904,0.03505123,69398.0,69397.0,0.0794]
[1730573468156,0.59569336,69398.0,69397.0,0.0794]
[1730573468807,0.45723811,69398.0,69397.0,0.1704]
[1730573472163,0.42218688,69398.0,69397.0,0.1704]
[1730573472497,0.45726941,69398.0,69397.0,0.1704]
[1730573475703,0.42218688,69398.0,69397.0,0.1704]
[1730573475798,0.45726414,69398.0,69397.0,0.1704]
[1730573476230,0.45726414,69398.0,69390.0,0.08614869]
[1730573476231,0.45726414,69398.0,69392.0,0.1665]
[1730573476458,0.03507726,69397.0,69392.0,0.0755]
[1730573476701,0.42218688,69396.0,69392.0,0.0755]
[1730573476898,0.03507726,69395.0,69392.0,0.0755]
[1730573477097,0.45726414,69394.0,69392.0,0.0755]
[1730573477351,0.03507726,69393.0,69392.0,0.0755]
[1730573477769,0.45726414,69393.0,69392.0,0.0755]
[1730573479136,0.45726736,69393.0,69392.0,0.0755]
[1730573479538,0.56064213,69393.0,69388.0,0.168142]
[1730573479785,0.56064213,69393.0,69388.0,0.077142]
[1730573479786,0.13845525,69392.0,69388.0,0.077142]
[1730573480231,0.42218688,69391.0,69388.0,0.077142]
[1730573480871,0.03508001,69390.0,69388.0,0.001642]
[1730573481020,0.42218688,69389.0,69388.0,0.001642]
[1730573481331,0.45726689,69389.0,69388.0,0.001642]
[1730573482196,0.42218688,69389.0,69388.0,0.001642]
[1730573482466,0.45726895,69389.0,69388.0,0.001642]
[1730573485068,0.45725683,69389.0,69388.0,0.001642]
[1730573488307,0.42218688,69389.0,69388.0,0.001642]
[1730573488714,0.45724463,69389.0,69388.0,0.001642]
[1730573489868,0.43567063,69389.0,69388.0,0.173142]
[1730573490275,0.43567063,69389.0,69388.0,0.171142]
[1730573493006,0.43566766,69389.0,69388.0,0.171142]
[1730573495676,0.42218688,69389.0,69388.0,0.171142]
[1730573496048,0.43566753,69389.0,69388.0,0.171142]
[1730573496140,0.43566753,69389.0,69388.0,0.12305767]
[1730573496331,0.43566753,69389.0,69388.0,0.079942]
[1730573502719,0.43567252,69389.0,69388.0,0.079942]
[1730573509896,0.43568041,69389.0,69388.0,0.079942]
[1730573510055,0.43568041,69389.0,69388.0,0.001642]
[1730573511338,0.45727077,69389.0,69388.0,0.001642]
[1730573512526,0.55257077,69389.0,69388.0,0.001642]
[1730573513181,0.51748688,69389.0,69388.0,0.001642]
[1730573513335,0.53098167,69389.0,69388.0,0.001642]
[1730573513846,0.4572741,69389.0,69388.0,0.001642]
[1730573516811,0.42218688,69389.0,69388.0,0.001642]
[1730573516813,0.45728157,69389.0,69388.0,0.001642]
[1730573517011,0.42218688,69389.0,69388.0,0.001642]
[1730573517301,0.45728153,69389.0,69388.0,0.001642]
[1730573519949,0.45728153,69389.0,69388.0,0.003642]
[1730573520416,0.42218688,69389.0,69388.0,0.003642]
[1730573520738,0.45729875,69389.0,69388.0,0.001642]
[1730573523349,0.55019875,69389.0,69388.0,0.001642]
[1730573530073,0.55019875,69389.0,69388.0,0.006642]
[1730573530985,0.55019875,69389.0,69388.0,0.04975243]
[1730573532280,0.55019875,69389.0,69388.0,0.006642]
[1730573533689,0.55020035,69389.0,69388.0,0.006642]
[1730573534466,0.55020035,69389.0,69388.0,0.07130809]
[1730573535321,0.55020035,69389.0,69388.0,0.23051764]
[1730573535529,0.55020035,69389.0,69388.0,0.16585155]
[1730573535948,0.55020035,69389.0,69388.0,0.16085155]
[1730573536187,0.55020035,69389.0,69388.0,0.16585155]
[1730573537187,0.55020079,69389.0,69388.0,0.16585155]
[1730573537785,0.55020079,69389.0,69388.0,0.16586129]
[1730573538678,0.51508688,69389.0,69388.0,0.16586129]
[1730573538901,0.55020089,69389.0,69388.0,0.16586129]
[1730573540988,0.51508688,69389.0,69388.0,0.16586129]
[1730573540996,0.55020103,69389.0,69388.0,0.16086129]
[1730573541294,0.55020103,69389.0,69388.0,0.16586129]
[1730573542270,0.55020103,69389.0,69388.0,0.16584513]
[1730573542504,0.45730103,69389.0,69388.0,0.16584513]
[1730573542956,0.43569232,69389.0,69388.0,0.16584513]
[1730573543155,0.42218688,69389.0,69388.0,0.27366524]
[1730573543369,0.42218688,69389.0,69388.0,0.16584513]
[1730573543583,0.42218688,69389.0,69388.0,0.16784513]
[1730573543969,0.43569134,69389.0,69388.0,0.16784513]
[1730573544529,0.43569134,69389.0,69388.0,0.11641327]
[1730573544756,0.43569134,69389.0,69388.0,0.2756164]
[1730573545601,0.42218688,69389.0,69388.0,0.2756164]
[1730573545856,0.42218688,69389.0,69388.0,0.2806164]
[1730573546099,0.42218688,69389.0,69388.0,0.57740038]
[1730573546365,0.42218688,69389.0,69388.0,0.75667156]
[1730573546562,0.42218688,69389.0,69388.0,0.62728743]
[1730573546787,0.42218688,69389.0,69388.0,0.62228743]
[1730573546995,0.42218688,69389.0,69388.0,0.62728743]
[1730573547708,0.42218688,69389.0,69388.0,0.58240038]
[1730573548954,0.42218688,69389.0,69388.0,0.57740038]
[1730573549101,0.42218688,69389.0,69388.0,0.58240038]
[1730573549820,0.42218688,69389.0,69388.0,0.57740038]
[1730573550014,0.42218688,69389.0,69388.0,0.62223425]
[1730573550232,0.42218688,69389.0,69388.0,0.62723425]
[1730573550678,0.42218688,69389.0,69388.0,0.57740038]
[1730573550894,0.42218688,69389.0,69388.0,0.58240038]
[1730573551096,0.42218688,69389.0,69388.0,0.62722461]
[1730573551597,0.42218688,69389.0,69388.0,0.49220038]
[1730573553736,0.42218688,69389.0,69388.0,0.48720038]
[1730573554240,0.42218688,69389.0,69388.0,0.49220038]
[1730573554777,0.42218688,69389.0,69388.0,0.48720038]
[1730573555170,0.42218688,69389.0,69388.0,0.49220038]
[1730573555895,0.42218688,69389.0,69388.0,0.48720038]
[1730573556102,0.42218688,69389.0,69388.0,0.49220038]
[1730573557389,0.41521092,69389.0,69388.0,0.49220038]
[1730573557842,0.41521092,69389.0,69388.0,0.49720038]
[1730573558067,0.41521092,69389.0,69388.0,0.54197437]
[1730573558363,0.41521092,69389.0,69388.0,0.63667437]
[1730573560157,0.41521092,69389.0,69388.0,0.6361029]
[1730573563512,0.41521092,69389.0,69388.0,1.0667399]
[1730573570475,0.41105886,69389.0,69388.0,1.4932069]
[1730573573799,0.41105886,69389.0,69388.0,1.49308151]
[1730573575787,0.41105886,69389.0,69388.0,1.24430451]
[1730573578731,0.41105886,69389.0,69388.0,1.16840451]
[1730573578939,0.41105886,69389.0,69388.0,0.46537751]
[1730573580621,0.41187986,69389.0,69388.0,0.5941953]
[1730573581732,0.41187986,69389.0,69388.0,0.99797651]
[1730573581951,0.41187986,69389.0,69388.0,0.96834633]
[1730573582222,0.41187986,69389.0,69388.0,0.83947024]
[1730573582441,0.41187986,69389.0,69388.0,0.56761524]
[1730573582626,0.41187986,69389.0,69388.0,0.46544924]
[1730573585698,0.41187986,69389.0,69388.0,0.59432533]
[1730573586169,0.41187986,69389.0,69388.0,0.59449362]
[1730573587310,0.41187986,69389.0,69388.0,0.46554208]
[1730573589338,0.41187986,69389.0,69388.0,0.68174608]
[1730573593368,0.41187986,69389.0,69388.0,0.56842808]
[1730573595588,0.41187986,69389.0,69388.0,0.75883309]
[1730573596287,0.41187986,69389.0,69388.0,0.40975724]
[1730573596755,0.41187986,69389.0,69388.0,0.56856844]
[1730573597174,0.41187986,69389.0,69388.0,2.31721744]
[1730573600155,0.41187986,69389.0,69388.0,2.08235744]
[1730573600371,0.41187986,69389.0,69388.0,1.92820744]
[1730573600778,0.41187986,69389.0,69388.0,1.86020944]
[1730573601007,0.41187986,69389.0,69388.0,1.40024744]
[1730573601217,0.41187986,69389.0,69388.0,1.38813244]
[1730573602972,0.41187986,69389.0,69388.0,1.35211744]
[1730573603195,0.41187986,69389.0,69388.0,1.29122844]
[1730573603382,0.41187986,69389.0,69388.0,1.13485044]
[1730573603593,0.41187986,69389.0,69388.0,1.08552044]
[1730573603837,0.41187986,69389.0,69388.0,1.07151044]
[1730573604059,0.41187986,69389.0,69388.0,0.99923544]
[1730573604491,0.41187986,69389.0,69388.0,0.92808644]
[1730573605415,0.41187986,69389.0,69388.0,0.86427644]
[1730573609047,0.41187986,69389.0,69388.0,0.86431855]
[1730573611863,0.41187986,69389.0,69388.0,0.86631855]
[1730573612521,0.41187986,69389.0,69388.0,0.86431855]
[1730573616486,0.41187986,69389.0,69388.0,0.97411193]
[1730573616621,0.41187986,69389.0,69388.0,0.99911193]
[1730573621672,0.50387986,69389.0,69388.0,0.57412255]
[1730573621898,0.50387986,69389.0,69388.0,0.46566055]
[1730573622526,0.50387986,69389.0,69388.0,0.46058119]
[1730573622743,0.50387986,69389.0,69388.0,0.65603704]
[1730573623180,0.50387986,69389.0,69388.0,0.65103704]
[1730573623691,0.50387986,69389.0,69388.0,0.65603704]
[1730573624986,0.50387986,69389.0,69388.0,1.07204119]
[1730573625888,0.50387986,69389.0,69388.0,0.89891119]
[1730573626130,0.50387986,69389.0,69388.0,0.82644219]
[1730573627160,0.50387986,69389.0,69388.0,0.84042119]
[1730573628606,0.50387986,69389.0,69388.0,0.83542119]
[1730573628884,0.57937986,69389.0,69388.0,0.46058119]
[1730573629069,0.57937986,69389.0,69388.0,0.21712594]
[1730573629515,0.57937986,69389.0,69388.0,0.16735195]
[1730573630394,0.57937986,69389.0,69388.0,0.27482284]
[1730573631464,0.57937986,69389.0,69388.0,0.16735195]
[1730573632402,0.57937986,69389.0,69388.0,0.25329391]
[1730573634381,0.57937986,69389.0,69388.0,0.16735195]
[1730573635492,0.57937986,69389.0,69388.0,0.23176307]
[1730573636164,0.57937986,69389.0,69388.0,0.23676307]
[1730573637464,0.57937986,69389.0,69388.0,0.07805312]
[1730573638110,0.57937986,69389.0,69388.0,0.23655286]
[1730573638533,0.57937986,69389.0,69388.0,0.23653737]
[1730573640054,0.57937986,69389.0,69388.0,0.07105312]
[1730573640295,0.57937986,69389.0,69388.0,0.006642]
[1730573641549,0.57937986,69389.0,69388.0,0.04957319]
[1730573641844,0.57937986,69389.0,69388.0,0.04957121]
[1730573642930,0.57937986,69389.0,69388.0,0.05457121]
[1730573643613,0.57937986,69389.0,69388.0,0.011642]
[1730573644174,0.57937986,69389.0,69388.0,0.05656353]
[1730573646601,0.57937986,69389.0,69388.0,0.013642]
[1730573649897,0.57937986,69389.0,69388.0,0.2364634]
[1730573650127,0.50387986,69389.0,69388.0,0.25792801]
[1730573651080,0.41187986,69389.0,69388.0,0.41552484]
[1730573651484,0.41187986,69389.0,69388.0,0.52284787]
[1730573651490,0.41187986,69389.0,69388.0,0.41552484]
[1730573652347,0.41187986,69389.0,69388.0,0.46021443]
[1730573652574,0.41187986,69389.0,69388.0,0.58900206]
[1730573652779,0.41187986,69389.0,69388.0,0.46021443]
[1730573653002,0.41187986,69389.0,69388.0,0.46015741]
[1730573653230,0.41187986,69389.0,69388.0,0.58886492]
[1730573655026,0.41187986,69389.0,69388.0,0.46015741]
[1730573655538,0.57897986,69389.0,69388.0,0.45517791]
[1730573655730,0.57897986,69389.0,69388.0,0.41546782]
[1730573655983,0.57897986,69389.0,69388.0,0.41046782]
[1730573656217,0.57897986,69389.0,69388.0,0.41546782]
[1730573656671,0.57897986,69389.0,69388.0,0.41046782]
[1730573656899,0.57897986,69389.0,69388.0,0.50130825]
[1730573657134,0.57897986,69389.0,69388.0,0.41046782]
[1730573657530,0.57897986,69389.0,69388.0,0.41546782]
[1730573657891,0.57897986,69389.0,69388.0,0.5013107]
[1730573658046,0.57897986,69389.0,69388.0,0.41546782]
[1730573661614,0.57897986,69389.0,69388.0,0.52275922]
[1730573662463,0.57897986,69389.0,69388.0,0.51775922]
[1730573662701,0.57897986,69389.0,69388.0,0.51275922]
[1730573662918,0.57897986,69389.0,69388.0,0.51775922]
[1730573663147,0.57897986,69389.0,69388.0,0.52275922]
[1730573664527,0.57897986,69389.0,69388.0,0.41546782]
[1730573665377,0.57897986,69389.0,69388.0,0.44428782]
[1730573665423,0.57897986,69389.0,69388.0,0.41546782]
[1730573666766,0.57897986,69389.0,69388.0,0.41046782]
[1730573666983,0.57897986,69389.0,69388.0,0.41546782]
[1730573669753,0.57897986,69389.0,69388.0,0.41046782]
[1730573669980,0.57897986,69389.0,69388.0,0.41546782]
[1730573670930,0.57897986,69389.0,69388.0,0.41046782]
[1730573671130,0.57897986,69389.0,69388.0,0.41560754]
[1730573672494,0.57897986,69389.0,69388.0,0.41060754]
[1730573672926,0.57897986,69389.0,69388.0,0.41560754]
[1730573673130,0.57897986,69389.0,69388.0,0.41060754]
[1730573676817,0.57897986,69389.0,69388.0,0.41560754]
[1730573678100,0.57897986,69389.0,69388.0,0.41060754]
[1730573678779,0.57897986,69389.0,69388.0,0.41560754]
[1730573679489,0.57897986,69389.0,69388.0,0.41060754]
[1730573680513,0.57897986,69389.0,69388.0,0.41069432]
[1730573681077,0.57897986,69389.0,69388.0,0.27223907]
[1730573681300,0.57897986,69389.0,69388.0,0.17223907]
[1730573687200,0.41187986,69389.0,69388.0,0.63585957]
[1730573687432,0.41187986,69389.0,69388.0,0.59658265]
[1730573687638,0.41187986,69389.0,69388.0,0.46769676]
[1730573689134,0.41187986,69389.0,69388.0,0.4604573]
[1730573689561,0.41187986,69389.0,69388.0,0.46043452]
[1730573694137,0.41187986,69389.0,69388.0,0.46039464]
[1730573702170,0.41187986,69389.0,69388.0,0.46048021]
[1730573704085,0.41187986,69389.0,69388.0,0.30186023]
[1730573704287,0.41187986,69389.0,69388.0,0.46048964]
[1730573706462,0.41187986,69389.0,69388.0,0.46048257]
[1730573715589,0.41187986,69389.0,69388.0,0.46046196]
[1730573720448,0.41187986,69389.0,69388.0,0.46043827]
[1730573729406,0.41187986,69389.0,69388.0,0.46039964]
[1730573733965,0.41187986,69389.0,69388.0,0.46047439]
[1730573738093,0.50727986,69389.0,69388.0,0.46047439]
[1730573738555,0.50727986,69389.0,69388.0,0.57040625]
[1730573739834,0.50727986,69389.0,69388.0,0.57256649]
[1730573743308,0.50727986,69389.0,69388.0,0.57255849]
[1730573747711,0.50727986,69389.0,69388.0,0.57258881]
[1730573752140,0.41187986,69389.0,69388.0,0.68938219]
[1730573752616,0.21654552,69410.0,69388.0,2.08608519]
[1730573752617,0.0954,69400.0,69388.0,2.08608519]
[1730573752815,0.21654552,69400.0,69399.0,0.19797297]
[1730573753067,0.21654552,69400.0,69399.0,0.51669643]